[Event "*** Titled Tuesday Blitz"]
[Site "Chess.com"]
[Date "2020.12.29"]
[Round "10"]
[White "rachidhuilda"]
[Black "lacafi"]
[Result "0-1"]
[WhiteElo "2209"]
[BlackElo "2122"]
[TimeControl "180+1"]
[EndTime "11:55:24 PST"]
[Termination "lacafi won on time"]

1. d4 {[%clk 0:03:00.9]} 1... f5 {[%clk 0:02:55.5]} 2. g3 {[%clk 0:03:00.4]}
2... Nf6 {[%clk 0:02:55.6]} 3. Bg2 {[%clk 0:03:01]} 3... g6 {[%clk 0:02:56.1]}
4. c4 {[%clk 0:03:01]} 4... Bg7 {[%clk 0:02:56.6]} 5. Nc3 {[%clk 0:03:01.6]}
5... O-O {[%clk 0:02:57.2]} 6. Nh3 {[%clk 0:03:02]} 6... d6 {[%clk 0:02:57.5]}
7. d5 {[%clk 0:03:02.1]} 7... c5 {[%clk 0:02:53.3]} 8. Nf4 {[%clk 0:02:58.6]}
8... Na6 {[%clk 0:02:52.9]} 9. O-O {[%clk 0:02:57.7]} 9... Nc7 {[%clk
0:02:52.9]} 10. Qc2 {[%clk 0:02:52.5]} 10... g5 {[%clk 0:02:52.3]} 11. Nd3
{[%clk 0:02:41.2]} 11... h6 {[%clk 0:02:52.3]} 12. b4 {[%clk 0:02:31.3]} 12...
b6 {[%clk 0:02:49.8]} 13. bxc5 {[%clk 0:02:30.6]} 13... bxc5 {[%clk 0:02:49]}
14. Bb2 {[%clk 0:02:26.4]} 14... Ba6 {[%clk 0:02:39.8]} 15. Qa4 {[%clk
0:02:21.6]} 15... Qd7 {[%clk 0:02:26.9]} 16. Rfc1 {[%clk 0:02:08.9]} 16... Rab8
{[%clk 0:02:22.6]} 17. Rab1 {[%clk 0:02:01.9]} 17... Rb7 {[%clk 0:02:01.2]} 18.
Ba1 {[%clk 0:01:54.8]} 18... Rxb1 {[%clk 0:01:59.7]} 19. Rxb1 {[%clk 0:01:52.1]}
19... Qxa4 {[%clk 0:01:59.5]} 20. Nxa4 {[%clk 0:01:52]} 20... Bxc4 {[%clk
0:02:00.4]} 21. Rb7 {[%clk 0:01:46.8]} 21... Ncxd5 {[%clk 0:01:59.8]} 22. Rxa7
{[%clk 0:01:39.3]} 22... Rb8 {[%clk 0:01:41.2]} 23. Nab2 {[%clk 0:01:22.8]}
23... Bxd3 {[%clk 0:01:37.6]} 24. exd3 {[%clk 0:01:23.1]} 24... Nb4 {[%clk
0:01:10.8]} 25. a3 {[%clk 0:00:43.3]} 25... Nc2 {[%clk 0:01:09.2]} 26. Nc4
{[%clk 0:00:33.4]} 26... Nxa1 {[%clk 0:01:08.1]} 27. Rxe7 {[%clk 0:00:28.5]}
27... d5 {[%clk 0:00:53.1]} 28. Nd6 {[%clk 0:00:26]} 28... f4 {[%clk 0:00:48.2]}
29. gxf4 {[%clk 0:00:22.2]} 29... Rb1+ {[%clk 0:00:45.5]} 30. Bf1 {[%clk
0:00:22.1]} 30... gxf4 {[%clk 0:00:41.6]} 31. Nf5 {[%clk 0:00:21]} 31... Bf8
{[%clk 0:00:41.8]} 32. Rc7 {[%clk 0:00:17.7]} 32... Nb3 {[%clk 0:00:34]} 33. Kg2
{[%clk 0:00:16.4]} 33... Nd2 {[%clk 0:00:22.7]} 34. Be2 {[%clk 0:00:16.3]} 34...
f3+ {[%clk 0:00:22.5]} 35. Bxf3 {[%clk 0:00:16.4]} 35... Nxf3 {[%clk 0:00:23]}
36. Kxf3 {[%clk 0:00:16.6]} 36... Rb3 {[%clk 0:00:23.6]} 37. Ke2 {[%clk
0:00:15.3]} 37... Rxa3 {[%clk 0:00:23.7]} 38. Ne7+ {[%clk 0:00:05.9]} 38... Bxe7
{[%clk 0:00:22.3]} 39. Rxe7 {[%clk 0:00:06.8]} 39... c4 {[%clk 0:00:21.8]} 40.
dxc4 {[%clk 0:00:06.4]} 40... dxc4 {[%clk 0:00:22.2]} 41. Rc7 {[%clk 0:00:05.9]}
41... c3 {[%clk 0:00:22]} 42. Rc6 {[%clk 0:00:05.9]} 42... Kf7 {[%clk
0:00:21.7]} 43. Rc7+ {[%clk 0:00:04.8]} 43... Kg6 {[%clk 0:00:21.8]} 44. f4
{[%clk 0:00:05]} 44... Nd5 {[%clk 0:00:20.6]} 45. Rc6+ {[%clk 0:00:04.8]} 45...
Kf5 {[%clk 0:00:20.8]} 46. Rxh6 {[%clk 0:00:04.3]} 46... Nxf4+ {[%clk
0:00:20.8]} 47. Kd1 {[%clk 0:00:03.6]} 47... Ra2 {[%clk 0:00:21.1]} 48. Kc1
{[%clk 0:00:03.6]} 48... c2 {[%clk 0:00:18.8]} 0-1

[Event "*** Titled Tuesday Blitz"]
[Site "Chess.com"]
[Date "2020.12.29"]
[Round "10"]
[White "GelmanAlexander"]
[Black "ural58"]
[Result "1/2-1/2"]
[WhiteElo "2559"]
[BlackElo "2426"]
[TimeControl "180+1"]
[EndTime "11:55:26 PST"]
[Termination "Game drawn by stalemate"]

1. d4 {[%clk 0:03:00.9]} 1... d5 {[%clk 0:02:54.3]} 2. Nc3 {[%clk 0:03:00.9]}
2... Nf6 {[%clk 0:02:52.4]} 3. Bf4 {[%clk 0:03:01]} 3... a6 {[%clk 0:02:52.4]}
4. e3 {[%clk 0:03:01]} 4... c5 {[%clk 0:02:51.9]} 5. Nf3 {[%clk 0:02:59]} 5...
e6 {[%clk 0:02:51.4]} 6. Ne5 {[%clk 0:02:46.4]} 6... b5 {[%clk 0:02:36.8]} 7. g4
{[%clk 0:02:42.9]} 7... Be7 {[%clk 0:02:11.8]} 8. g5 {[%clk 0:02:34.5]} 8...
Nfd7 {[%clk 0:02:10.7]} 9. Nf3 {[%clk 0:02:29.3]} 9... Nc6 {[%clk 0:02:07.5]}
10. h4 {[%clk 0:02:29.3]} 10... Qb6 {[%clk 0:02:05.3]} 11. Bg2 {[%clk
0:02:29.2]} 11... b4 {[%clk 0:02:02.1]} 12. Ne2 {[%clk 0:02:29.1]} 12... a5
{[%clk 0:01:57.7]} 13. O-O {[%clk 0:02:28.4]} 13... Ba6 {[%clk 0:01:57.1]} 14.
Re1 {[%clk 0:02:28.4]} 14... O-O {[%clk 0:01:56.6]} 15. h5 {[%clk 0:02:20]}
15... f6 {[%clk 0:01:54.6]} 16. Ng3 {[%clk 0:01:43.5]} 16... fxg5 {[%clk
0:01:43.1]} 17. Nxg5 {[%clk 0:01:39.1]} 17... Bxg5 {[%clk 0:01:39.7]} 18. Bxg5
{[%clk 0:01:39.1]} 18... Nf6 {[%clk 0:01:39.1]} 19. h6 {[%clk 0:01:30.4]} 19...
g6 {[%clk 0:01:38.4]} 20. c3 {[%clk 0:01:13.7]} 20... a4 {[%clk 0:01:32.8]} 21.
Rc1 {[%clk 0:01:07.9]} 21... a3 {[%clk 0:01:31.5]} 22. dxc5 {[%clk 0:01:01.2]}
22... Qc7 {[%clk 0:01:16.7]} 23. bxa3 {[%clk 0:00:55.7]} 23... bxa3 {[%clk
0:01:09.6]} 24. Rb1 {[%clk 0:00:42.6]} 24... Bc4 {[%clk 0:01:09.2]} 25. Qc2
{[%clk 0:00:36.9]} 25... Qe7 {[%clk 0:00:37.3]} 26. Rb6 {[%clk 0:00:34.4]} 26...
Ne5 {[%clk 0:00:33.3]} 27. e4 {[%clk 0:00:31.5]} 27... Qxc5 {[%clk 0:00:29.1]}
28. Rxe6 {[%clk 0:00:28.5]} 28... Nfg4 {[%clk 0:00:26.3]} 29. Be3 {[%clk
0:00:13.8]} 29... Nxe3 {[%clk 0:00:25.7]} 30. Rxe3 {[%clk 0:00:14.7]} 30... Ng4
{[%clk 0:00:24.9]} 31. Rf3 {[%clk 0:00:14.3]} 31... Rxf3 {[%clk 0:00:22]} 32.
Bxf3 {[%clk 0:00:14.4]} 32... dxe4 {[%clk 0:00:22]} 33. Bxg4 {[%clk 0:00:12.5]}
33... Bxe6 {[%clk 0:00:21.1]} 34. Bxe6+ {[%clk 0:00:12.2]} 34... Kh8 {[%clk
0:00:21.1]} 35. Qxe4 {[%clk 0:00:12]} 35... Rf8 {[%clk 0:00:18.1]} 36. Qd4+
{[%clk 0:00:09]} 36... Qxd4 {[%clk 0:00:18.2]} 37. cxd4 {[%clk 0:00:09.9]} 37...
Rb8 {[%clk 0:00:18.1]} 38. d5 {[%clk 0:00:09.1]} 38... Rb1+ {[%clk 0:00:16.9]}
39. Kg2 {[%clk 0:00:08.8]} 39... Rd1 {[%clk 0:00:17.8]} 40. Ne4 {[%clk
0:00:07.6]} 40... g5 {[%clk 0:00:17.2]} 41. Nxg5 {[%clk 0:00:07.6]} 41... Rg1+
{[%clk 0:00:16.7]} 42. Kf3 {[%clk 0:00:04]} 42... Rxg5 {[%clk 0:00:16.2]} 43.
Ke4 {[%clk 0:00:04.5]} 43... Re5+ {[%clk 0:00:14.1]} 44. Kd4 {[%clk 0:00:02.1]}
44... Rxd5+ {[%clk 0:00:13.8]} 45. Kxd5 {[%clk 0:00:01.7]} 1/2-1/2

[Event "*** Titled Tuesday Blitz"]
[Site "Chess.com"]
[Date "2020.12.29"]
[Round "10"]
[White "Dinamo81"]
[Black "Koksal06"]
[Result "1-0"]
[WhiteElo "2674"]
[BlackElo "2471"]
[TimeControl "180+1"]
[EndTime "11:55:34 PST"]
[Termination "Dinamo81 won by resignation"]

1. d4 {[%clk 0:03:00.9]} 1... d5 {[%clk 0:02:59.8]} 2. Bf4 {[%clk 0:03:00.1]}
2... Nf6 {[%clk 0:02:59.6]} 3. e3 {[%clk 0:02:59.7]} 3... Bf5 {[%clk 0:02:58.7]}
4. c4 {[%clk 0:02:54.6]} 4... c6 {[%clk 0:02:59]} 5. Nc3 {[%clk 0:02:48.5]} 5...
e6 {[%clk 0:02:58.9]} 6. Qb3 {[%clk 0:02:47.7]} 6... Qd7 {[%clk 0:02:36.2]} 7.
Nf3 {[%clk 0:02:43.4]} 7... Be7 {[%clk 0:02:33.4]} 8. h3 {[%clk 0:02:21.4]} 8...
O-O {[%clk 0:02:33.3]} 9. Be2 {[%clk 0:02:21]} 9... Qc8 {[%clk 0:02:07.6]} 10.
O-O {[%clk 0:02:18.1]} 10... Nbd7 {[%clk 0:02:08.2]} 11. Rfc1 {[%clk 0:02:17.5]}
11... Nb6 {[%clk 0:01:57.9]} 12. Ne5 {[%clk 0:02:10.4]} 12... Nfd7 {[%clk
0:01:34.5]} 13. cxd5 {[%clk 0:02:01.8]} 13... Nxe5 {[%clk 0:01:26.6]} 14. Bxe5
{[%clk 0:01:58.4]} 14... exd5 {[%clk 0:01:25.4]} 15. a4 {[%clk 0:01:45.5]} 15...
Be6 {[%clk 0:01:25.6]} 16. a5 {[%clk 0:01:37.3]} 16... Nd7 {[%clk 0:01:26.3]}
17. Bg3 {[%clk 0:01:33.7]} 17... a6 {[%clk 0:01:21.7]} 18. Na4 {[%clk
0:01:28.3]} 18... Bd8 {[%clk 0:01:22.4]} 19. Qc3 {[%clk 0:01:25.2]} 19... Bc7
{[%clk 0:01:20.2]} 20. Bxc7 {[%clk 0:01:14.1]} 20... Qxc7 {[%clk 0:01:21.1]} 21.
b4 {[%clk 0:01:11.8]} 21... Qd6 {[%clk 0:01:21.5]} 22. Nc5 {[%clk 0:01:10.7]}
22... Nxc5 {[%clk 0:01:22]} 23. bxc5 {[%clk 0:01:10.4]} 23... Qe7 {[%clk
0:01:21.5]} 24. Rab1 {[%clk 0:01:05]} 24... Rac8 {[%clk 0:01:22.1]} 25. Bd3
{[%clk 0:01:02.7]} 25... g6 {[%clk 0:01:21.6]} 26. Rb2 {[%clk 0:00:59.6]} 26...
Rfd8 {[%clk 0:01:19.4]} 27. Rcb1 {[%clk 0:00:56.4]} 27... Rd7 {[%clk 0:01:19.9]}
28. Rb6 {[%clk 0:00:51.9]} 28... Rcc7 {[%clk 0:01:16.1]} 29. R1b2 {[%clk
0:00:50.9]} 29... Qf6 {[%clk 0:01:16]} 30. Qc2 {[%clk 0:00:46.8]} 30... Qe7
{[%clk 0:01:16.2]} 31. Qe2 {[%clk 0:00:46.1]} 31... Kg7 {[%clk 0:01:15.7]} 32.
Qf3 {[%clk 0:00:46.2]} 32... Kg8 {[%clk 0:01:16.1]} 33. Qf4 {[%clk 0:00:45.6]}
33... Kg7 {[%clk 0:01:15.7]} 34. f3 {[%clk 0:00:45.7]} 34... f6 {[%clk 0:01:11]}
35. h4 {[%clk 0:00:44.9]} 35... h5 {[%clk 0:01:10.7]} 36. Qg3 {[%clk 0:00:42.2]}
36... Bf7 {[%clk 0:01:11]} 37. Kf2 {[%clk 0:00:41.6]} 37... Kh7 {[%clk
0:01:10.8]} 38. Qf4 {[%clk 0:00:41.7]} 38... Kg7 {[%clk 0:01:11]} 39. Rb1 {[%clk
0:00:41]} 39... Rc8 {[%clk 0:01:06.6]} 40. Rg1 {[%clk 0:00:39.9]} 40... Rh8
{[%clk 0:01:06.1]} 41. g4 {[%clk 0:00:39.5]} 41... g5 {[%clk 0:00:47]} 42. Qf5
{[%clk 0:00:29.9]} 42... hxg4 {[%clk 0:00:26.8]} 43. Rxg4 {[%clk 0:00:26.9]}
43... Rxh4 {[%clk 0:00:24]} 44. Rxh4 {[%clk 0:00:26.3]} 44... gxh4 {[%clk
0:00:24.9]} 45. Qh7+ {[%clk 0:00:23.8]} 45... Kf8 {[%clk 0:00:25.4]} 46. Qh6+
{[%clk 0:00:18.1]} 46... Ke8 {[%clk 0:00:24.8]} 47. Bxa6 {[%clk 0:00:15.8]}
47... bxa6 {[%clk 0:00:20.3]} 48. Qh8+ {[%clk 0:00:10.6]} 48... Qf8 {[%clk
0:00:20.9]} 49. Rb8+ {[%clk 0:00:10.2]} 49... Rd8 {[%clk 0:00:21.7]} 50. Rxd8+
{[%clk 0:00:10.1]} 50... Kxd8 {[%clk 0:00:22.1]} 51. Qxf8+ {[%clk 0:00:10.2]}
51... Kc7 {[%clk 0:00:23]} 52. Qxf7+ {[%clk 0:00:10]} 52... Kb8 {[%clk
0:00:23.7]} 53. Qxf6 {[%clk 0:00:09.8]} 53... Ka7 {[%clk 0:00:24]} 54. Qxh4
{[%clk 0:00:09.8]} 1-0

[Event "*** Titled Tuesday Blitz"]
[Site "Chess.com"]
[Date "2020.12.29"]
[Round "10"]
[White "Babujj"]
[Black "Kolle05"]
[Result "0-1"]
[WhiteElo "2508"]
[BlackElo "2404"]
[TimeControl "180+1"]
[EndTime "11:55:34 PST"]
[Termination "Kolle05 won by resignation"]

1. d4 {[%clk 0:03:00.9]} 1... Nf6 {[%clk 0:02:58]} 2. Nf3 {[%clk 0:02:59.7]}
2... g6 {[%clk 0:02:58]} 3. Bf4 {[%clk 0:02:56.9]} 3... Bg7 {[%clk 0:02:57.5]}
4. Nc3 {[%clk 0:02:57.5]} 4... d5 {[%clk 0:02:57.3]} 5. h4 {[%clk 0:02:53]} 5...
h5 {[%clk 0:02:56.8]} 6. e3 {[%clk 0:02:53.1]} 6... O-O {[%clk 0:02:57.1]} 7.
Bd3 {[%clk 0:02:53.5]} 7... c5 {[%clk 0:02:57]} 8. Nb1 {[%clk 0:02:48.3]} 8...
Nc6 {[%clk 0:02:53.3]} 9. c3 {[%clk 0:02:46.9]} 9... Qb6 {[%clk 0:02:46.1]} 10.
Qc1 {[%clk 0:02:45]} 10... Bg4 {[%clk 0:02:24.7]} 11. Nbd2 {[%clk 0:02:43.5]}
11... Rac8 {[%clk 0:02:22.5]} 12. O-O {[%clk 0:02:41.2]} 12... Bxf3 {[%clk
0:02:02.8]} 13. Nxf3 {[%clk 0:02:38.4]} 13... Ne4 {[%clk 0:02:03.3]} 14. Qb1
{[%clk 0:02:28.2]} 14... cxd4 {[%clk 0:01:51.8]} 15. exd4 {[%clk 0:02:29.1]}
15... Nf6 {[%clk 0:01:39.8]} 16. Re1 {[%clk 0:02:15.1]} 16... a6 {[%clk
0:01:39]} 17. a4 {[%clk 0:02:14.7]} 17... e6 {[%clk 0:01:34.2]} 18. Ng5 {[%clk
0:02:10]} 18... Ne7 {[%clk 0:01:23.5]} 19. a5 {[%clk 0:02:06.8]} 19... Qc6
{[%clk 0:01:23.4]} 20. Ra3 {[%clk 0:02:06.8]} 20... Nf5 {[%clk 0:01:00.1]} 21.
Bxf5 {[%clk 0:01:59.4]} 21... exf5 {[%clk 0:01:01]} 22. f3 {[%clk 0:01:58.3]}
22... Rfe8 {[%clk 0:01:00.8]} 23. Rb3 {[%clk 0:01:57.7]} 23... Nd7 {[%clk
0:00:54.2]} 24. Rb4 {[%clk 0:01:43.4]} 24... f6 {[%clk 0:00:51.6]} 25. Nh3
{[%clk 0:01:42.5]} 25... Bf8 {[%clk 0:00:51.4]} 26. Rb3 {[%clk 0:01:42.2]} 26...
Kf7 {[%clk 0:00:50.8]} 27. Nf2 {[%clk 0:01:41]} 27... b5 {[%clk 0:00:45.1]} 28.
axb6 {[%clk 0:01:40.2]} 28... Nxb6 {[%clk 0:00:45.6]} 29. Nd3 {[%clk 0:01:38.3]}
29... Nc4 {[%clk 0:00:43.6]} 30. Rxe8 {[%clk 0:01:37.4]} 30... Rxe8 {[%clk
0:00:43.1]} 31. Qa2 {[%clk 0:01:36.2]} 31... a5 {[%clk 0:00:42.1]} 32. Rb8
{[%clk 0:01:24]} 32... Rxb8 {[%clk 0:00:33.8]} 33. Bxb8 {[%clk 0:01:24.9]} 33...
a4 {[%clk 0:00:28.9]} 34. b3 {[%clk 0:01:23.3]} 34... axb3 {[%clk 0:00:28.4]}
35. Qxb3 {[%clk 0:01:24.2]} 35... Qa6 {[%clk 0:00:19.2]} 36. Bf4 {[%clk
0:01:22.7]} 36... Qb6 {[%clk 0:00:12.5]} 37. Qxb6 {[%clk 0:01:20.5]} 37... Nxb6
{[%clk 0:00:13.4]} 38. Nb4 {[%clk 0:01:18.8]} 38... Bxb4 {[%clk 0:00:12.4]} 39.
cxb4 {[%clk 0:01:19.7]} 39... Ke6 {[%clk 0:00:10.9]} 40. b5 {[%clk 0:01:20]}
40... Nc4 {[%clk 0:00:09]} 41. Kh2 {[%clk 0:01:17.2]} 41... Kd7 {[%clk
0:00:07.8]} 42. Kh3 {[%clk 0:01:17.4]} 42... Na3 {[%clk 0:00:07.9]} 43. b6
{[%clk 0:01:17.1]} 43... Kc6 {[%clk 0:00:08.2]} 44. Bc7 {[%clk 0:01:17.1]} 44...
Nb5 {[%clk 0:00:08.3]} 45. Bd8 {[%clk 0:01:17.3]} 45... Nxd4 {[%clk 0:00:08.3]}
46. Bxf6 {[%clk 0:01:16.4]} 46... Ne6 {[%clk 0:00:08.9]} 47. g4 {[%clk
0:01:14.1]} 47... Kxb6 {[%clk 0:00:08.8]} 48. gxh5 {[%clk 0:01:13.2]} 48... gxh5
{[%clk 0:00:08.9]} 49. Kg3 {[%clk 0:01:13.6]} 49... Kc5 {[%clk 0:00:09.1]} 50.
Be7+ {[%clk 0:01:13.3]} 50... Kc4 {[%clk 0:00:09.2]} 51. Bg5 {[%clk 0:01:11.1]}
51... d4 {[%clk 0:00:09.2]} 52. Bc1 {[%clk 0:01:10.8]} 52... Kc3 {[%clk
0:00:09.2]} 53. Kf2 {[%clk 0:01:10]} 53... d3 {[%clk 0:00:09.6]} 54. Ke1 {[%clk
0:01:09.1]} 54... Kc2 {[%clk 0:00:10.2]} 55. Be3 {[%clk 0:01:07.8]} 55... Nd4
{[%clk 0:00:10.5]} 56. Kf2 {[%clk 0:01:07]} 56... d2 {[%clk 0:00:10]} 57. Bxd2
{[%clk 0:01:05.9]} 57... Kxd2 {[%clk 0:00:10.9]} 58. Kg3 {[%clk 0:01:06.4]}
58... Ke3 {[%clk 0:00:10.6]} 59. f4 {[%clk 0:01:00.7]} 59... Ne2+ {[%clk
0:00:10.4]} 60. Kh3 {[%clk 0:01:01.3]} 60... Nxf4+ {[%clk 0:00:11.3]} 61. Kh2
{[%clk 0:01:02.2]} 61... Kf3 {[%clk 0:00:11.4]} 62. Kg1 {[%clk 0:01:02.7]} 62...
Kg3 {[%clk 0:00:12]} 63. Kh1 {[%clk 0:01:03.1]} 63... Kxh4 {[%clk 0:00:12.9]}
64. Kg1 {[%clk 0:01:04]} 64... Kg4 {[%clk 0:00:13.4]} 65. Kh1 {[%clk 0:01:04.9]}
65... h4 {[%clk 0:00:14.1]} 66. Kg1 {[%clk 0:01:05.8]} 66... Nd3 {[%clk
0:00:13.6]} 67. Kh1 {[%clk 0:01:06.7]} 67... f4 {[%clk 0:00:14.2]} 68. Kg1
{[%clk 0:01:07.6]} 68... Kg3 {[%clk 0:00:14.5]} 69. Kh1 {[%clk 0:01:08.5]} 69...
f3 {[%clk 0:00:15]} 70. Kg1 {[%clk 0:01:08.9]} 70... f2+ {[%clk 0:00:15.3]} 71.
Kf1 {[%clk 0:01:09]} 71... h3 {[%clk 0:00:15.3]} 0-1

[Event "*** Titled Tuesday Blitz"]
[Site "Chess.com"]
[Date "2020.12.29"]
[Round "10"]
[White "Schack-Hugo"]
[Black "dosto07"]
[Result "0-1"]
[WhiteElo "2157"]
[BlackElo "2274"]
[TimeControl "180+1"]
[EndTime "11:55:34 PST"]
[Termination "dosto07 won on time"]

1. e4 {[%clk 0:03:00.9]} 1... e5 {[%clk 0:02:58.9]} 2. Nf3 {[%clk 0:03:00.7]}
2... Nc6 {[%clk 0:02:57.5]} 3. Bc4 {[%clk 0:03:00.8]} 3... Bc5 {[%clk 0:02:56]}
4. c3 {[%clk 0:03:00.4]} 4... Nf6 {[%clk 0:02:54.5]} 5. d3 {[%clk 0:03:00.2]}
5... d6 {[%clk 0:02:53.8]} 6. O-O {[%clk 0:02:54.7]} 6... a6 {[%clk 0:02:53.6]}
7. Bb3 {[%clk 0:02:53.4]} 7... Ba7 {[%clk 0:02:51.1]} 8. Re1 {[%clk 0:02:52]}
8... O-O {[%clk 0:02:49.6]} 9. Nbd2 {[%clk 0:02:49.5]} 9... Ng4 {[%clk 0:02:49]}
10. Re2 {[%clk 0:02:48]} 10... Kh8 {[%clk 0:02:48.5]} 11. h3 {[%clk 0:02:40.4]}
11... Nh6 {[%clk 0:02:48.2]} 12. Nf1 {[%clk 0:02:39.3]} 12... f5 {[%clk
0:02:47.3]} 13. Bxh6 {[%clk 0:02:38.8]} 13... gxh6 {[%clk 0:02:46.9]} 14. exf5
{[%clk 0:02:38.8]} 14... Bxf5 {[%clk 0:02:42.7]} 15. Re1 {[%clk 0:01:33.1]}
15... Qf6 {[%clk 0:02:37.1]} 16. Bd5 {[%clk 0:01:23.2]} 16... Nd8 {[%clk
0:02:29.2]} 17. Ng3 {[%clk 0:01:21.9]} 17... Bd7 {[%clk 0:02:15.8]} 18. d4
{[%clk 0:01:08.5]} 18... c6 {[%clk 0:02:04.7]} 19. dxe5 {[%clk 0:00:52.9]} 19...
dxe5 {[%clk 0:02:02.5]} 20. Be4 {[%clk 0:00:50.1]} 20... Be6 {[%clk 0:01:44.4]}
21. Qc2 {[%clk 0:00:17.8]} 21... Nf7 {[%clk 0:01:38]} 22. Nh5 {[%clk 0:00:16.5]}
22... Qe7 {[%clk 0:01:31.4]} 23. Bxh7 {[%clk 0:00:08.9]} 23... Ng5 {[%clk
0:01:25.3]} 24. Be4 {[%clk 0:00:07.3]} 24... Nxf3+ {[%clk 0:01:17.4]} 25. Bxf3
{[%clk 0:00:07]} 25... Qg5 {[%clk 0:01:16.1]} 26. Ng3 {[%clk 0:00:05.5]} 26...
Qxg3 {[%clk 0:01:13.3]} 27. Qe2 {[%clk 0:00:05]} 27... Bxh3 {[%clk 0:00:50.5]}
28. Qxe5+ {[%clk 0:00:04.5]} 28... Qxe5 {[%clk 0:00:49.5]} 29. Rxe5 {[%clk
0:00:05.4]} 29... Bf5 {[%clk 0:00:46.6]} 30. Rae1 {[%clk 0:00:04.1]} 30... Bg6
{[%clk 0:00:33.7]} 31. Re7 {[%clk 0:00:03.8]} 31... Rae8 {[%clk 0:00:32.3]} 32.
Rxe8 {[%clk 0:00:03.1]} 32... Rxe8 {[%clk 0:00:32.3]} 33. Rd1 {[%clk 0:00:03.3]}
33... Re7 {[%clk 0:00:30.5]} 34. Rd8+ {[%clk 0:00:03]} 34... Kg7 {[%clk
0:00:30.4]} 35. Rd2 {[%clk 0:00:03.1]} 35... Kf6 {[%clk 0:00:25.8]} 36. g3
{[%clk 0:00:03.2]} 36... Be4 {[%clk 0:00:25.6]} 37. Kg2 {[%clk 0:00:03.2]} 37...
Bxf3+ {[%clk 0:00:25]} 38. Kxf3 {[%clk 0:00:04.1]} 38... h5 {[%clk 0:00:25.1]}
39. Rd6+ {[%clk 0:00:03.8]} 39... Kf5 {[%clk 0:00:20.7]} 40. Rh6 {[%clk
0:00:03.2]} 40... Kg5 {[%clk 0:00:20.8]} 41. Rd6 {[%clk 0:00:02.9]} 41... Bc5
{[%clk 0:00:20]} 42. Rd2 {[%clk 0:00:02.1]} 42... Rf7+ {[%clk 0:00:20]} 43. Kg2
{[%clk 0:00:02.4]} 43... h4 {[%clk 0:00:18.6]} 44. Re2 {[%clk 0:00:02.4]} 44...
hxg3 {[%clk 0:00:17.6]} 45. Kxg3 {[%clk 0:00:03]} 45... Kf6 {[%clk 0:00:17.6]}
46. f4 {[%clk 0:00:02.7]} 46... Re7 {[%clk 0:00:17.8]} 47. Rxe7 {[%clk
0:00:01.7]} 47... Kxe7 {[%clk 0:00:17.4]} 48. Kf3 {[%clk 0:00:02.1]} 48... Kf6
{[%clk 0:00:18.3]} 49. Ke4 {[%clk 0:00:02.5]} 49... a5 {[%clk 0:00:16.1]} 50. b3
{[%clk 0:00:01.5]} 50... Bd6 {[%clk 0:00:16]} 0-1

[Event "*** Titled Tuesday Blitz"]
[Site "Chess.com"]
[Date "2020.12.29"]
[Round "10"]
[White "MasterMK73"]
[Black "bylavochka"]
[Result "1-0"]
[WhiteElo "2238"]
[BlackElo "2132"]
[TimeControl "180+1"]
[EndTime "11:55:36 PST"]
[Termination "MasterMK73 won on time"]

1. e4 {[%clk 0:03:00.9]} 1... c5 {[%clk 0:02:59.2]} 2. c3 {[%clk 0:02:59.8]}
2... Nf6 {[%clk 0:02:52.5]} 3. e5 {[%clk 0:02:59]} 3... Nd5 {[%clk 0:02:52.2]}
4. d4 {[%clk 0:02:59.5]} 4... Nc6 {[%clk 0:02:48.6]} 5. Nf3 {[%clk 0:02:55.5]}
5... cxd4 {[%clk 0:02:44.1]} 6. cxd4 {[%clk 0:02:52.4]} 6... d6 {[%clk 0:02:44]}
7. Bc4 {[%clk 0:02:49.3]} 7... Nb6 {[%clk 0:02:42.8]} 8. Bb5 {[%clk 0:02:49]}
8... d5 {[%clk 0:02:41]} 9. h3 {[%clk 0:02:40.5]} 9... Bf5 {[%clk 0:02:28.7]}
10. O-O {[%clk 0:02:34]} 10... e6 {[%clk 0:02:26.7]} 11. Nc3 {[%clk 0:02:30.8]}
11... h6 {[%clk 0:02:21.5]} 12. Bd3 {[%clk 0:02:28.1]} 12... Bxd3 {[%clk
0:02:15.5]} 13. Qxd3 {[%clk 0:02:27.6]} 13... Be7 {[%clk 0:02:15.9]} 14. b3
{[%clk 0:02:26.2]} 14... O-O {[%clk 0:02:10]} 15. a3 {[%clk 0:02:25.4]} 15... a6
{[%clk 0:02:02.5]} 16. Re1 {[%clk 0:02:24.1]} 16... Nd7 {[%clk 0:02:02]} 17. Ne2
{[%clk 0:02:20]} 17... b5 {[%clk 0:01:59.1]} 18. Ng3 {[%clk 0:02:19.2]} 18...
Re8 {[%clk 0:01:56.7]} 19. Nh5 {[%clk 0:02:19]} 19... Bf8 {[%clk 0:01:55.1]} 20.
Bf4 {[%clk 0:02:03.4]} 20... Rc8 {[%clk 0:01:51.1]} 21. Bg3 {[%clk 0:02:00.4]}
21... Ne7 {[%clk 0:01:47.9]} 22. Bh4 {[%clk 0:01:58]} 22... Qb6 {[%clk
0:01:40.3]} 23. Bxe7 {[%clk 0:01:52.6]} 23... Bxe7 {[%clk 0:01:36.5]} 24. Nh2
{[%clk 0:01:51.9]} 24... g6 {[%clk 0:01:21.5]} 25. Nf4 {[%clk 0:01:49.4]} 25...
b4 {[%clk 0:01:10.4]} 26. Nxg6 {[%clk 0:01:44.7]} 26... fxg6 {[%clk 0:01:06.3]}
27. Qxg6+ {[%clk 0:01:44.4]} 27... Kh8 {[%clk 0:01:04.1]} 28. Qxh6+ {[%clk
0:01:43.8]} 28... Kg8 {[%clk 0:01:02.6]} 29. Qg6+ {[%clk 0:01:43.5]} 29... Kh8
{[%clk 0:01:00.7]} 30. Nf3 {[%clk 0:01:40.8]} 30... Nf8 {[%clk 0:00:53.3]} 31.
Qh6+ {[%clk 0:01:36.9]} 31... Nh7 {[%clk 0:00:51.7]} 32. a4 {[%clk 0:01:33.8]}
32... Rg8 {[%clk 0:00:44]} 33. a5 {[%clk 0:01:32.9]} 33... Qc6 {[%clk
0:00:31.1]} 34. Rac1 {[%clk 0:01:32.1]} 34... Qd7 {[%clk 0:00:28.7]} 35. Kh2
{[%clk 0:01:30.7]} 35... Rc3 {[%clk 0:00:23.8]} 36. Rxc3 {[%clk 0:01:24.4]}
36... bxc3 {[%clk 0:00:24.7]} 37. Rc1 {[%clk 0:01:17.3]} 37... Qc6 {[%clk
0:00:12.5]} 38. h4 {[%clk 0:01:12.4]} 38... Ba3 {[%clk 0:00:04.8]} 39. Rc2
{[%clk 0:01:11]} 39... Be7 {[%clk 0:00:04.9]} 40. g3 {[%clk 0:01:09.5]} 40...
Bf8 {[%clk 0:00:05]} 41. Qe3 {[%clk 0:01:08.5]} 41... Bb4 {[%clk 0:00:03.7]} 42.
Ne1 {[%clk 0:01:06.9]} 42... Rf8 {[%clk 0:00:03]} 43. Nd3 {[%clk 0:01:06.1]}
43... Bxa5 {[%clk 0:00:03.3]} 44. b4 {[%clk 0:01:05.7]} 44... Bd8 {[%clk
0:00:03.2]} 45. Nf4 {[%clk 0:01:05.4]} 45... Qe8 {[%clk 0:00:01.9]} 46. Rxc3
{[%clk 0:01:03.7]} 46... Rg8 {[%clk 0:00:01.6]} 47. Qf3 {[%clk 0:00:48.8]} 47...
Qf8 {[%clk 0:00:01.3]} 48. Rc6 {[%clk 0:00:34.9]} 48... Qf5 {[%clk 0:00:01.3]}
49. Rxe6 {[%clk 0:00:28.4]} 49... Qe4 {[%clk 0:00:01.8]} 50. Qh5 {[%clk
0:00:22.1]} 1-0